[Event "44th Chess Olympiad Women 2022"]
[Site "Chennai"]
[Date "2022.08.02"]
[Round "5.29"]
[White "Selkirk, Rebecca"]
[Black "Sim, Jia Ru"]
[Result "0-1"]
[ECO "B48"]
[WhiteElo "1745"]
[BlackElo "2005"]
[Annotator "NA RC"]
[PlyCount "66"]
[EventDate "2022.07.29"]
[EventType "team-tourn"]
[EventCountry "IND"]
[SourceTitle "playchess.com"]
[Source "ChessBase"]
[SourceQuality "1"]
[WhiteTeam "South Africa"]
[BlackTeam "Malaysia"]
[WhiteTeamCountry "RSA"]
[BlackTeamCountry "MAS"]
[TimeControl "40/5400+30:1800+30"]

1. e4 {[%emt 0:00:04]} c5 {[%emt 0:00:11]} 2. Nf3 {[%emt 0:00:06]} e6 {[%emt 0:00:08]} 3. d4 {[%emt 0:00:05]} cxd4 {[%emt 0:00:06]} 4. Nxd4 {[%emt 0:00:06]} Nc6 {[%emt 0:00:14]} 5. Nc3 {[%emt 0:00:07]} Qc7 {[%emt 0:00:08]} 6. Be3 {[%emt 0:00:13]} a6 {[%emt 0:00:09]} 7. Qd2 {[%emt 0:00:07]} Nf6 {[%emt 0:00:31]} 8. O-O-O {[%emt 0:01:42]} Be7 {[%emt 0:00:59]} 9. f4 {[%emt 0:05:20]} b5 {[%emt 0:02:09]} 10. Bd3 {[%emt 0:16:05]} Bb7 {[%emt 0:09:07]} 11. Nb3 {[%emt 0:16:49]} Na5 {[%emt 0:12:33]} 12. Kb1 {[%emt 0:05:08]} Nc4 {[%emt 0:11:35]} 13. Qe2 {[%emt 0:04:11]} Bb4 {[%emt 0:06:18]} 14. Bd4 {[%emt 0:10:01]} Rc8 {[%emt 0:01:27]} 15. e5 {[%emt 0:05:21]} Nd5 {[%emt 0:10:05]} 16. Nxd5 {[%emt 0:04:47]} Bxd5 {[%emt 0:00:27]} 17. c3 {[%emt 0:04:16]} Be7 {[%emt 0:05:54]} 18. f5 {[%emt 0:03:06]} exf5 {[%emt 0:06:41]} 19. Bxf5 {[%emt 0:00:54]} Qc6 {[%emt 0:07:40]} 20. Nd2 {[%emt 0:05:18]} b4 {[%emt 0:05:53]} 21. Ne4 {[%emt 0:03:21]} Qb5 {[%emt 0:03:19]} 22. Rhe1 {[%emt 0:02:33]} Bxe4+ {[%emt 0:03:06]} 23. Qxe4 {[%emt 0:00:21]} Nxb2 {[%emt 0:01:24]} 24. c4 {[%emt 0:08:00]} Nxc4 {[%emt 0:01:46]} 25. e6 {[%emt 0:00:24]} dxe6 {[%emt 0:04:52]} 26. Bxg7 {[%emt 0:01:02]} b3 {[%emt 0:00:51]} 27. Bxe6 {[%emt 0:01:49]} Na3+ {[%emt 0:02:09]} 28. Ka1 {[%emt 0:00:03]} Nc2+ {[%emt 0:00:22]} 29. Kb2 {[%emt 0:01:16]} fxe6 {[%emt 0:01:35]} 30. Qxe6 {[%emt 0:01:20]} bxa2+ {[%emt 0:00:10]} 31. Qb3 {[%emt 0:01:08]} a1=Q+ {[%emt 0:02:16]} 32. Rxa1 {[%emt 0:00:04]} Qxb3+ {[%emt 0:00:04]} 33. Kxb3 {[%emt 0:00:08]} Nxa1+ {[%emt 0:00:03]} 0-1

[Event "44th Chess Olympiad Women 2022"]
[Site "Chennai"]
[Date "2022.08.02"]
[Round "5.30"]
[White "Corrales Jimenez, Zenia"]
[Black "Al-Fayyadh, Zainab Asif Abdulah"]
[Result "1-0"]
[ECO "C84"]
[WhiteElo "2143"]
[BlackElo "1749"]
[Annotator "NA RC"]
[PlyCount "43"]
[EventDate "2022.07.29"]
[EventType "team-tourn"]
[EventCountry "IND"]
[SourceTitle "playchess.com"]
[Source "ChessBase"]
[SourceQuality "1"]
[WhiteTeam "Mexico"]
[BlackTeam "Iraq"]
[WhiteTeamCountry "MEX"]
[BlackTeamCountry "IRQ"]
[TimeControl "40/5400+30:1800+30"]

1. e4 {[%emt 0:00:03]} e5 {[%emt 0:00:05]} 2. Nf3 {[%emt 0:00:13]} Nc6 {[%emt 0:00:04]} 3. Bb5 {[%emt 0:00:13]} a6 {[%emt 0:00:08]} 4. Ba4 {[%emt 0:00:08]} Nf6 {[%emt 0:00:07]} 5. d4 {[%emt 0:00:21]} exd4 {[%emt 0:06:14]} 6. O-O {[%emt 0:00:34]} Be7 {[%emt 0:00:28]} 7. e5 {[%emt 0:00:47]} Nd5 {[%emt 0:02:17]} 8. Nxd4 {[%emt 0:22:02]} Nb6 {[%emt 0:05:16]} 9. Nf5 {[%emt 0:10:42]} O-O {[%emt 0:06:13]} 10. Bb3 {[%emt 0:07:17]} Nxe5 {[%emt 0:09:25]} 11. f4 {[%emt 0:04:54]} Bc5+ {[%emt 0:02:51]} 12. Be3 {[%emt 0:01:34]} Bxe3+ {[%emt 0:01:14]} 13. Nxe3 {[%emt 0:00:02]} Ng6 {[%emt 0:02:06]} 14. Nc3 {[%emt 0:05:53]} d6 {[%emt 0:02:11]} 15. f5 {[%emt 0:04:16]} Ne5 {[%emt 0:02:10]} 16. Qh5 {[%emt 0:01:55]} Nbd7 {[%emt 0:07:39]} 17. Ne4 {[%emt 0:06:06]} c6 {[%emt 0:11:06]} 18. f6 {[%emt 0:02:16]} Nxf6 {[%emt 0:00:42]} 19. Rxf6 {[%emt 0:07:57]} gxf6 {[%emt 0:19:08]} 20. Qh6 {[%emt 0:03:15]} Ng6 {[%emt 0:02:37]} 21. Rf1 {[%emt 0:00:07]} f5 {[%emt 0:00:31]} 22. Ng5 {[%emt 0:00:08]} 1-0

[Event "44th Chess Olympiad Women 2022"]
[Site "Chennai"]
[Date "2022.08.02"]
[Round "5.30"]
[White "Avila Fraire, Ameyalli"]
[Black "Tiba, Mahdi Attiyah"]
[Result "1/2-1/2"]
[ECO "B01"]
[WhiteElo "1907"]
[BlackElo "1759"]
[Annotator "TA"]
[PlyCount "97"]
[EventDate "2022.07.29"]
[EventType "team-tourn"]
[EventCountry "IND"]
[SourceTitle "playchess.com"]
[Source "ChessBase"]
[SourceQuality "1"]
[WhiteTeam "Mexico"]
[BlackTeam "Iraq"]
[WhiteTeamCountry "MEX"]
[BlackTeamCountry "IRQ"]
[TimeControl "40/5400+30:1800+30"]

{[%evp 9,97,20,35,35,41,24,32,20,38,14,28,-6,11,-16,-8,-7,-9,-14,-8,-18,-6,-16,-25,-23,-10,-63,127,61,55,55,119,119,107,0,0,0,0,-62,-58,-86,0,0,-25,-18,-22,-27,-23,-101,-81,-92,-65,-157,-64,-78,-47,-57,-21,-68,-17,-16,-18,-17,-18,-90,-12,-221,-228,-271,-281,-306,-314,-345,-248,-129,0,0,0,0,0,0,0,0,0,0,0,0,0,0,0,0]} 1. e4 {[%emt 0:00:05]} d5 {[%emt 0:00:27]} 2. exd5 {[%emt 0:00:11]} Qxd5 {[%emt 0:00:03]} 3. Nc3 {[%emt 0:00:08]} Qa5 {[%emt 0:00:03]} 4. d4 {[%emt 0:00:11]} c6 {[%emt 0:00:04]} 5. a3 {[%emt 0:00:15]} Nf6 {[%emt 0:00:26]} 6. Bd3 $1 {[%emt 0:00:20] B01: Scandinavian Defence.} Bg4 {[%emt 0:00:28][%cal Bc8g4,Bg4h5,Bh5g6][%mdl 32]} 7. Nge2 {[%emt 0:00:35]} e6 {[%emt 0:00:42]} 8. f3 {[%emt 0:02:19] White is slightly better.} Bh5 {[%emt 0:00:19]} 9. O-O {[%emt 0:02:08]} Bg6 {[%emt 0:01:30] [#]} 10. Rb1 $146 {[%emt 0:11:03]} ({Predecessor:} 10. Ne4 Nbd7 11. b4 Qd8 12. c3 Be7 13. Qc2 Nxe4 14. fxe4 e5 15. Ng3 O-O 16. Nf5 {½-½ (36) Cipressi,N (2163)-Raijmaekers,R (2367) ICCF email 2005}) 10... Nbd7 {[%emt 0:10:09]} 11. b4 {[%emt 0:04:11]} Qc7 {[%emt 0:09:17]} 12. Bf4 {[%emt 0:00:47]} Bd6 {[%emt 0:00:34]} 13. Bxd6 {[%emt 0:03:08]} Qxd6 {[%emt 0:00:03]} 14. Ne4 {[%emt 0:13:25]} Qc7 {[%emt 0:02:32]} 15. Re1 {[%emt 0:08:40]} O-O {[%emt 0:06:56]} 16. Qd2 {[%emt 0:07:18]} Rad8 {[%emt 0:17:43]} 17. Nf4 {[%emt 0:11:02]} (17. N2g3 $11) 17... e5 $2 {[%emt 0:16:30]} (17... Bxe4 $15 {keeps the upper hand.} 18. Bxe4 Qb6) 18. Nxf6+ {[%emt 0:01:02]} ({White should try} 18. Nxg6 $16 hxg6 19. Nxf6+ Nxf6 20. dxe5) 18... gxf6 $14 {[%emt 0:00:19]} 19. Nxg6 {[%emt 0:04:41]} hxg6 {[%emt 0:00:11]} (19... fxg6 $14 20. Qh6 Nb6) 20. Qh6 $1 $16 {[%emt 0:01:01][%cal Od3g6] Threatening mate with Bxg6!} f5 {[%emt 0:04:11] [#]} 21. f4 {[%emt 0:19:35] White is much more active.} ({White should play} 21. Bxf5 $1 $16 {[%cal Oe1e4][%mdl 512] Re4! would kill now.} gxf5 22. Qg5+ Kh8 23. Qh6+ Kg8 24. Qg5+ Kh8 25. f4) 21... e4 $36 {[%emt 0:07:14][%mdl 2048] Black fights for an advantage.} 22. Re3 {[%emt 0:04:32][%cal Oe3h3]} Qd6 {[%emt 0:00:20]} (22... exd3 $2 23. Rh3 dxc2 24. Qh8#) 23. c3 {[%emt 0:00:18]} Qf6 $15 {[%emt 0:00:37]} (23... exd3 $2 24. Rh3) 24. Bc4 {[%emt 0:02:36] And now Rg3 would win.} b5 {[%emt 0:03:22]} ({Better is} 24... Nb6 $17 25. Bb3 (25. Rh3 Qg7 $17) 25... Nd5 26. Bxd5 (26. Rh3 Qg7 $17) 26... cxd5) 25. Bb3 $11 {[%emt 0:01:19]} ({Much weaker is} 25. Rh3 Qg7 26. Bb3 Qxh6 27. Rxh6 Kg7 $17) 25... Nb6 {[%emt 0:00:40]} 26. Rg3 {[%emt 0:01:54] aiming for Rxg6+.} Nd5 {[%emt 0:00:12]} 27. Bxd5 {[%emt 0:00:21]} cxd5 {[%emt 0:00:55]} 28. Ra1 {[%emt 0:00:40]} (28. a4 $11) 28... Rc8 {[%emt 0:02:30][%cal Oc8c3] Strongly threatening ...Rxc3!} 29. Rh3 {[%emt 0:00:33][%csl Gh3][%cal Rh6h7]} Qg7 {[%emt 0:01:05] Inhibits Qh7+.} 30. Qxg7+ {[%emt 0:00:09]} Kxg7 $15 {[%emt 0:00:02][%mdl 4096] Endgame KRR-KRR} 31. a4 {[%emt 0:00:30]} a6 {[%emt 0:01:50]} (31... a5 $5 32. bxa5 (32. axb5 axb4 33. cxb4 Rc4 $17) 32... Ra8 33. axb5 Rfb8 $15) 32. Kf2 {[%emt 0:00:22]} Rc6 {[%emt 0:04:03]} 33. Ke2 {[%emt 0:00:15]} (33. axb5 $11 axb5 34. Ra5) 33... Re8 {[%emt 0:00:45]} (33... Rb8 $15) 34. axb5 $11 {[%emt 0:00:54]} axb5 {[%emt 0:00:02]} 35. Ra5 {[%emt 0:00:07]} Rb6 {[%emt 0:07:48]} 36. Ra7 {[%emt 0:00:35]} (36. Kf2 $11 {remains equal.}) 36... Rd8 {[%emt 0:00:47]} (36... Rbb8 $1 $17) 37. Kd2 $2 {[%emt 0:00:55] [#]} (37. Kf2 $11) 37... Rbb8 $1 $19 {[%emt 0:00:18]} 38. Kc2 {[%emt 0:00:52] [#]} Ra8 $1 {[%emt 0:00:04]} 39. Rxa8 {[%emt 0:00:27]} Rxa8 {[%emt 0:00:02] KR-KR} 40. Kb2 {[%emt 0:00:10] Prevents Ra2+.} Re8 {[%emt 0:00:52] Threatens to win with ...e3.} 41. Kc2 {[%emt 0:30:21]} (41. Kc1 $19) 41... e3 {[%emt 0:32:01]} (41... Rg8 $17 {Hoping for ...f6.} 42. Kd1 Ra8) 42. Kd1 $11 {[%emt 0:00:12] The position is equal.} e2+ {[%emt 0:00:04]} 43. Ke1 {[%emt 0:00:04]} Re4 {[%emt 0:00:24]} 44. Rf3 {[%emt 0:00:13]} Kf6 {[%emt 0:01:31]} 45. Rf2 {[%emt 0:00:00]} Re3 {[%emt 0:00:00]} 46. Rf3 {[%emt 0:00:00]} Re4 {[%emt 0:00:00]} 47. Rf2 {[%emt 0:00:00]} Re3 {[%emt 0:00:00]} 48. Rf3 {[%emt 0:00:00]} Re4 {[%emt 0:00:00]} 49. Rf2 {[%emt 0:00:00] Weighted Error Value: White=0.29 (precise) /Black=0.25 (precise)} 1/2-1/2

[Event "44th Chess Olympiad Women 2022"]
[Site "Chennai"]
[Date "2022.08.02"]
[Round "5.30"]
[White "Sara Masood Abdullah"]
[Black "Guillen Cristobal, Sandra N"]
[Result "0-1"]
[ECO "B38"]
[WhiteElo "1677"]
[BlackElo "1962"]
[Annotator "TA"]
[PlyCount "80"]
[EventDate "2022.07.29"]
[EventType "team-tourn"]
[EventCountry "IND"]
[SourceTitle "playchess.com"]
[Source "ChessBase"]
[SourceQuality "1"]
[WhiteTeam "Iraq"]
[BlackTeam "Mexico"]
[WhiteTeamCountry "IRQ"]
[BlackTeamCountry "MEX"]
[TimeControl "40/5400+30:1800+30"]

{[%evp 21,80,31,42,35,33,14,40,16,26,29,36,24,15,24,24,21,21,13,19,12,22,26,28,22,33,23,25,-46,-51,-53,-51,-263,-261,-265,-265,-418,0,0,0,0,0,0,0,0,0,-649,0,-14,-13,-9,-18,-1916,-1888,-1841,-1538,-29983,-29984,-29982,-1260,-29969,-11372]} 1. e4 {[%emt 0:00:05]} c5 {[%emt 0:00:08]} 2. Nf3 {[%emt 0:00:11]} Nc6 {[%emt 0:00:07]} 3. d4 {[%emt 0:00:23]} cxd4 {[%emt 0:00:07]} 4. Nxd4 {[%emt 0:00:06]} g6 {[%emt 0:00:05]} 5. c4 {[%emt 0:00:10]} Bg7 {[%emt 0:00:06]} 6. Be3 {[%emt 0:00:09]} Nf6 {[%emt 0:00:25]} 7. Nc3 {[%emt 0:00:24]} d6 {[%emt 0:01:12]} 8. Be2 {[%emt 0:01:00]} Bd7 {[%emt 0:01:15]} 9. O-O {[%emt 0:00:58]} O-O {[%emt 0:00:54]} 10. h3 {[%emt 0:03:31]} Nxd4 {[%emt 0:00:26]} 11. Bxd4 {[%emt 0:00:39]} Bc6 {[%emt 0:00:14]} 12. Bf3 {[%emt 0:07:23] B38: Sicilian: Maroczy Bind with 5...Bg7 and 7...0-0.} a5 {[%emt 0:03:37]} 13. Nd5 {[%emt 0:04:38]} Bxd5 {[%emt 0:02:53]} (13... Nd7 {feels hotter.} 14. Bxg7 Kxg7 15. Qd2 a4) 14. cxd5 {[%emt 0:00:52] [#] White is slightly better.} a4 $146 {[%emt 0:03:41]} ({Predecessor:} 14... Nd7 15. Bxg7 Kxg7 16. Qd4+ f6 17. Be2 Nc5 18. b3 Qd7 19. Rac1 b5 20. f4 b4 {0-1 (48) Balan,B (2067)-Bargan,S (2250) Arad 2021}) 15. Rc1 {[%emt 0:04:49]} Nd7 {[%emt 0:03:12]} 16. Be2 {[%emt 0:02:24]} Qa5 {[%emt 0:01:17]} 17. Bxg7 {[%emt 0:03:18]} Kxg7 {[%emt 0:00:06]} 18. Qd4+ {[%emt 0:00:08]} Kg8 {[%emt 0:00:17]} 19. Rc3 {[%emt 0:01:34]} Rfc8 {[%emt 0:05:40]} 20. Rfc1 {[%emt 0:01:03]} Rxc3 {[%emt 0:00:34]} 21. Rxc3 {[%emt 0:02:07]} Nc5 {[%emt 0:05:19]} 22. h4 {[%emt 0:01:23]} b5 {[%emt 0:09:46]} 23. h5 {[%emt 0:05:48]} b4 {[%emt 0:01:34]} 24. Rh3 {[%emt 0:00:46]} (24. Re3 $11) 24... b3 $15 {[%emt 0:03:13]} 25. hxg6 {[%emt 0:03:00]} fxg6 {[%emt 0:01:22]} 26. axb3 {[%emt 0:08:16]} (26. a3 $1 $15) 26... Qe1+ $19 {[%emt 0:01:30]} 27. Bf1 {[%emt 0:00:47][%cal Oe4e5]} axb3 {[%emt 0:00:14]} 28. Re3 {[%emt 0:14:52]} (28. Qc4 {was worth a try.} Nxe4 29. Qe2 Qxe2 30. Bxe2) 28... Qb1 $2 {[%emt 0:00:34]} (28... Qc1 $1 $19 {aiming for ...Ra1.} 29. f4 Ra4) 29. e5 $1 $11 {[%emt 0:03:14]} Ra1 {[%emt 0:00:13]} 30. Qc4 {[%emt 0:01:19]} Qxb2 {[%emt 0:05:52]} 31. exd6 {[%emt 0:01:12]} exd6 {[%emt 0:02:11] And now ...Ra8 would win.} 32. Qf4 {[%emt 0:03:56] White threatens Re8+ and mate.} Ra8 {[%emt 0:21:18] Against Re8+. Hoping for ...Rf8.} ({Don't play} 32... Rxf1+ 33. Kxf1 Qb1+ 34. Ke2 Qa2+ 35. Kf3 $16) 33. Re2 $2 {[%emt 0:05:12][%mdl 8192] [#]} (33. Qxd6 $11 Qd4 34. Re2) 33... Qc3 $2 {[%emt 0:07:41]} ({Weaker is} 33... Qg7 34. Qxd6 Qd4 35. Qb6 $11) ({Black should try} 33... Qxe2 $1 $19 {[%mdl 512]} 34. Bxe2 b2) 34. Re7 {[%emt 0:01:01] Threatening mate with Qf7+.} Rf8 $36 {[%emt 0:05:57][%mdl 2048] Inhibits Qf7+. Black has good play.} 35. Qh6 {[%emt 0:06:41][%csl Ge7][%cal Rh6h7]} Qh8 {[%emt 0:00:35] ...b2 is the strong threat.} 36. Bb5 $2 {[%emt 0:05:41][%mdl 8192]} (36. Bc4 $11) 36... b2 $19 {[%emt 0:01:13]} 37. Re1 {[%emt 0:04:13]} Qd4 {[%emt 0:01:52]} 38. Qe3 {[%emt 0:04:03]} Qxe3 {[%emt 0:00:22]} 39. fxe3 {[%emt 0:00:12]} Rb8 {[%emt 0:00:09]} (39... Ra8 $142 40. Rf1 Ra1 41. Ba4 Rxf1+ 42. Kxf1 b1=Q+ 43. Ke2 Nxa4 44. g4 Qb2+ 45. Kf3 Nc3 46. Kg3 Qe2 47. g5 Nxd5 48. e4 Ne3 49. Kh3 Qg4+ 50. Kh2 Qg2#) 40. Rb1 {[%emt 0:01:43]} Rxb5 {[%emt 0:00:06] Weighted Error Value: White=0.99/Black=0.67} 0-1

[Event "44th Chess Olympiad Women 2022"]
[Site "Chennai"]
[Date "2022.08.02"]
[Round "5.30"]
[White "Al-Fayyadh, Yamama Asif Abdula"]
[Black "Hernandez Diaz, Paula Sofia"]
[Result "0-1"]
[ECO "A04"]
[WhiteElo "1666"]
[BlackElo "1751"]
[Annotator "NA RC COMBH"]
[PlyCount "76"]
[EventDate "2022.07.29"]
[EventType "team-tourn"]
[EventCountry "IND"]
[SourceTitle "playchess.com"]
[Source "ChessBase"]
[SourceQuality "1"]
[WhiteTeam "Iraq"]
[BlackTeam "Mexico"]
[WhiteTeamCountry "IRQ"]
[BlackTeamCountry "MEX"]
[TimeControl "40/5400+30:1800+30"]

1. e4 {[%emt 0:00:03]} c5 {[%emt 0:00:07]} 2. Nf3 {[%emt 0:00:15]} g6 {[%emt 0:00:07]} 3. d3 {[%emt 0:00:19]} Bg7 {[%emt 0:00:17]} 4. g3 {[%emt 0:00:15]} e5 {[%emt 0:04:33]} 5. Bg2 {[%emt 0:00:29]} Ne7 {[%emt 0:00:09]} 6. O-O {[%emt 0:00:32]} O-O {[%emt 0:05:33]} 7. Nbd2 {[%emt 0:00:14]} Nbc6 {[%emt 0:01:14]} 8. Re1 {[%emt 0:04:59]} d6 {[%emt 0:02:03]} 9. c3 {[%emt 0:03:17]} Rb8 {[%emt 0:08:21]} 10. Nf1 {[%emt 0:06:37]} b5 {[%emt 0:07:32]} 11. h4 {[%emt 0:05:01]} h6 {[%emt 0:02:05]} 12. h5 {[%emt 0:07:25]} g5 {[%emt 0:01:15]} 13. N3h2 {[%emt 0:01:10]} f5 {[%emt 0:09:29]} 14. exf5 {[%emt 0:09:40]} Bxf5 {[%emt 0:00:23]} 15. Ne3 {[%emt 0:00:53]} Be6 {[%emt 0:00:16]} 16. Nc2 {[%emt 0:02:21]} d5 {[%emt 0:12:50]} 17. d4 {[%emt 0:14:42]} cxd4 {[%emt 0:01:24]} 18. cxd4 {[%emt 0:00:08]} e4 {[%emt 0:00:14]} 19. f4 {[%emt 0:05:03]} gxf4 {[%emt 0:06:03]} 20. Bxf4 {[%emt 0:00:24]} Rc8 {[%emt 0:02:16]} 21. Qd2 {[%emt 0:01:58]} Nf5 {[%emt 0:14:34]} 22. g4 {[%emt 0:07:59]} Ncxd4 {[%emt 0:13:47]} 23. Nxd4 {[%emt 0:01:20]} Nxd4 {[%emt 0:05:24]} 24. Rad1 {[%emt 0:10:20]} Qf6 {[%emt 0:01:54]} 25. Bxh6 {[%emt 0:02:13]} Bxh6 {[%emt 0:00:35]} 26. Qxd4 {[%emt 0:00:11]} Qxd4+ {[%emt 0:00:15]} 27. Rxd4 {[%emt 0:00:10]} Rc2 {[%emt 0:00:06]} 28. Nf1 {[%emt 0:02:32]} Rff2 {[%emt 0:01:05]} 29. Bh3 {[%emt 0:06:31]} Bg5 {[%emt 0:00:32]} 30. Ne3 {[%emt 0:00:57]} Rxb2 {[%emt 0:00:22]} 31. Nd1 {[%emt 0:02:42]} Rfd2 {[%emt 0:00:29]} 32. Rxd2 {[%emt 0:01:33]} Rxd2 {[%emt 0:00:01]} 33. Nc3 {[%emt 0:00:08]} Rd3 {[%emt 0:00:26]} 34. Nxe4 {[%emt 0:00:36]} dxe4 {[%emt 0:00:24]} 35. Rxe4 {[%emt 0:00:07]} Kf7 {[%emt 0:00:55]} 36. Bf1 {[%emt 0:00:32]} Rd1 {[%emt 0:00:47]} 37. Kf2 {[%emt 0:01:32]} Bh4+ {[%emt 0:00:12]} 38. Kg2 {[%emt 0:00:20]} Bd5 {[%emt 0:00:07]} 0-1

[Event "44th Chess Olympiad Women 2022"]
[Site "Chennai"]
[Date "2022.08.02"]
[Round "5.31"]
[White "Khalil, Manar"]
[Black "Fang, Kun"]
[Result "1-0"]
[ECO "C56"]
[WhiteElo "1831"]
[BlackElo "1766"]
[Annotator "NA RC COMBH"]
[PlyCount "77"]
[EventDate "2022.07.29"]
[EventType "team-tourn"]
[EventCountry "IND"]
[SourceTitle "playchess.com"]
[Source "ChessBase"]
[SourceQuality "1"]
[WhiteTeam "Syria"]
[BlackTeam "SGP"]
[WhiteTeamCountry "SYR"]
[TimeControl "40/5400+30:1800+30"]

1. e4 {[%emt 0:00:03]} e5 {[%emt 0:00:03]} 2. Nf3 {[%emt 0:00:10]} Nc6 {[%emt 0:00:04]} 3. d4 {[%emt 0:00:06]} exd4 {[%emt 0:00:04]} 4. Bc4 {[%emt 0:00:13]} Nf6 {[%emt 0:01:58]} 5. e5 {[%emt 0:00:25]} d5 {[%emt 0:02:21]} 6. Bb5 {[%emt 0:00:47]} Ne4 {[%emt 0:07:04]} 7. Nxd4 {[%emt 0:00:58]} Bd7 {[%emt 0:01:01]} 8. Bxc6 {[%emt 0:00:53]} bxc6 {[%emt 0:00:16]} 9. O-O {[%emt 0:00:18]} Bc5 {[%emt 0:00:11]} 10. f3 {[%emt 0:05:39]} Ng5 {[%emt 0:00:02]} 11. f4 {[%emt 0:01:17]} Ne4 {[%emt 0:00:02]} 12. Be3 {[%emt 0:01:22]} Bb6 {[%emt 0:00:17]} 13. Nc3 {[%emt 0:05:03]} Nxc3 {[%emt 0:08:14]} 14. bxc3 {[%emt 0:00:18]} c5 {[%emt 0:02:59]} 15. Nb3 {[%emt 0:03:01]} c4 {[%emt 0:00:49]} 16. Bxb6 {[%emt 0:04:19]} axb6 {[%emt 0:01:49]} 17. Nd4 {[%emt 0:00:50]} c5 {[%emt 0:05:51]} 18. e6 {[%emt 0:03:48]} fxe6 {[%emt 0:16:56]} 19. Qh5+ {[%emt 0:08:23]} Ke7 {[%emt 0:01:37]} 20. Nf3 {[%emt 0:10:29]} Qf8 {[%emt 0:06:45]} 21. Rfe1 {[%emt 0:06:24]} Kd6 {[%emt 0:03:54]} 22. Rab1 {[%emt 0:08:29]} Rb8 {[%emt 0:15:36]} 23. Ne5 {[%emt 0:08:26]} g6 {[%emt 0:01:38]} 24. Qe2 {[%emt 0:04:41]} Qf6 {[%emt 0:03:36]} 25. g3 {[%emt 0:03:30]} Kc7 {[%emt 0:04:56]} 26. Qe3 {[%emt 0:04:18]} h6 {[%emt 0:05:16]} 27. Nf3 {[%emt 0:03:31]} Rhf8 {[%emt 0:00:28]} 28. Kg2 {[%emt 0:00:52]} Ra8 {[%emt 0:04:51]} 29. Rb2 {[%emt 0:00:59]} Ra3 {[%emt 0:01:23]} 30. Ne5 {[%emt 0:00:56]} Bc8 {[%emt 0:01:12]} 31. Rxb6 {[%emt 0:03:27]} d4 {[%emt 0:03:46]} 32. Qe4 {[%emt 0:01:23]} Ra7 {[%emt 0:00:44]} 33. Qc6+ {[%emt 0:03:42]} Kd8 {[%emt 0:00:03]} 34. Qd6+ {[%emt 0:00:15]} Ke8 {[%emt 0:00:29]} 35. Rb8 {[%emt 0:00:28]} Qd8 {[%emt 0:00:07]} 36. Qc6+ {[%emt 0:02:03]} Ke7 {[%emt 0:00:21]} 37. Nxg6+ {[%emt 0:00:43]} Kf7 {[%emt 0:01:28]} 38. Nxf8 {[%emt 0:00:40]} Rc7 {[%emt 0:00:28]} 39. Nxe6 {[%emt 0:01:21]} 1-0

[Event "44th Chess Olympiad Women 2022"]
[Site "Chennai"]
[Date "2022.08.02"]
[Round "5.31"]
[White "Hng, Mei-Xian Eunice"]
[Black "Mahmoud, Roula"]
[Result "1/2-1/2"]
[ECO "B21"]
[WhiteElo "1823"]
[BlackElo "1765"]
[Annotator "NA RC COMBH"]
[PlyCount "119"]
[EventDate "2022.07.29"]
[EventType "team-tourn"]
[EventCountry "IND"]
[SourceTitle "playchess.com"]
[Source "ChessBase"]
[SourceQuality "1"]
[WhiteTeam "SGP"]
[BlackTeam "Syria"]
[BlackTeamCountry "SYR"]
[TimeControl "40/5400+30:1800+30"]

1. e4 {[%emt 0:00:30]} c5 {[%emt 0:00:04]} 2. d4 {[%emt 0:00:27]} cxd4 {[%emt 0:00:04]} 3. c3 {[%emt 0:00:06]} dxc3 {[%emt 0:00:03]} 4. Nxc3 {[%emt 0:00:07]} e6 {[%emt 0:00:03]} 5. Bc4 {[%emt 0:00:40]} Nc6 {[%emt 0:00:57]} 6. Nf3 {[%emt 0:00:50]} a6 {[%emt 0:00:25]} 7. O-O {[%emt 0:01:28]} Nge7 {[%emt 0:00:03]} 8. a4 {[%emt 0:04:12]} Ng6 {[%emt 0:01:55]} 9. Be3 {[%emt 0:00:57]} Bb4 {[%emt 0:08:17]} 10. Nd4 {[%emt 0:15:09]} O-O {[%emt 0:07:14]} 11. f4 {[%emt 0:06:25]} Bxc3 {[%emt 0:24:47]} 12. bxc3 {[%emt 0:01:52]} d5 {[%emt 0:02:35]} 13. exd5 {[%emt 0:07:11]} exd5 {[%emt 0:00:40]} 14. Bd3 {[%emt 0:07:11]} Re8 {[%emt 0:01:06]} 15. Nxc6 {[%emt 0:01:46]} bxc6 {[%emt 0:00:34]} 16. Bd4 {[%emt 0:01:06]} f6 {[%emt 0:09:25]} 17. Qh5 {[%emt 0:12:59]} Nf8 {[%emt 0:03:38]} 18. Bc5 {[%emt 0:04:45]} g6 {[%emt 0:02:39]} 19. Qh6 {[%emt 0:02:49]} Qc7 {[%emt 0:00:44]} 20. f5 {[%emt 0:02:44]} Qg7 {[%emt 0:02:32]} 21. Qf4 {[%emt 0:02:36]} Nd7 {[%emt 0:09:27]} 22. Bd4 {[%emt 0:03:27]} c5 {[%emt 0:02:32]} 23. Qd6 {[%emt 0:02:14]} cxd4 {[%emt 0:01:30]} 24. Qxd5+ {[%emt 0:00:20]} Qf7 {[%emt 0:00:54]} 25. Qxa8 {[%emt 0:00:45]} Ne5 {[%emt 0:02:29]} 26. fxg6 {[%emt 0:02:08]} hxg6 {[%emt 0:01:01]} 27. Bxa6 {[%emt 0:02:39]} Bf5 {[%emt 0:04:34]} 28. Qb7 {[%emt 0:00:11]} dxc3 {[%emt 0:00:22]} 29. Qxf7+ {[%emt 0:00:21]} Kxf7 {[%emt 0:00:15]} 30. Rac1 {[%emt 0:02:13]} c2 {[%emt 0:02:48]} 31. Rxf5 {[%emt 0:02:11]} gxf5 {[%emt 0:00:05]} 32. Rxc2 {[%emt 0:00:02]} Ng4 {[%emt 0:01:14]} 33. Bc4+ {[%emt 0:03:17]} Kg6 {[%emt 0:00:26]} 34. Be2 {[%emt 0:00:23]} Ne3 {[%emt 0:04:21]} 35. Ra2 {[%emt 0:00:57]} Nd5 {[%emt 0:00:30]} 36. Bb5 {[%emt 0:01:37]} Re3 {[%emt 0:02:34]} 37. Kf2 {[%emt 0:03:01]} f4 {[%emt 0:00:43]} 38. Rd2 {[%emt 0:02:41]} Nc3 {[%emt 0:01:53]} 39. Bc6 {[%emt 0:04:11]} f5 {[%emt 0:02:09]} 40. Rc2 {[%emt 0:01:20]} Nd1+ {[%emt 0:01:19]} 41. Kf1 {[%emt 0:30:20]} Ra3 {[%emt 0:30:28]} 42. Ke2 {[%emt 0:00:00]} Nc3+ {[%emt 0:00:00]} 43. Kd2 {[%emt 0:00:00]} Nxa4 {[%emt 0:00:00]} 44. Rc4 {[%emt 0:00:00]} Ra2+ {[%emt 0:00:00]} 45. Kc1 {[%emt 0:00:00]} Nb2 {[%emt 0:00:00]} 46. Rxf4 {[%emt 0:00:00]} Nd3+ {[%emt 0:00:00]} 47. Kb1 {[%emt 0:00:00]} Rb2+ {[%emt 0:00:00]} 48. Ka1 {[%emt 0:00:00]} Rxg2 {[%emt 0:00:00]} 49. Bxg2 {[%emt 0:00:00]} Nxf4 {[%emt 0:00:00]} 50. Bb7 {[%emt 0:00:00]} Nh5 {[%emt 0:00:00]} 51. Kb2 {[%emt 0:00:00]} f4 {[%emt 0:00:00]} 52. Kc2 {[%emt 0:00:00]} Kg5 {[%emt 0:00:00]} 53. Kd2 {[%emt 0:00:00]} Nf6 {[%emt 0:00:00]} 54. Ke1 {[%emt 0:00:00]} Ng4 {[%emt 0:00:00]} 55. h3 {[%emt 0:00:00]} Ne5 {[%emt 0:00:00]} 56. Kf1 {[%emt 0:00:00]} Kh4 {[%emt 0:00:00]} 57. Kg2 {[%emt 0:00:00]} Nd3 {[%emt 0:00:00]} 58. Kf3 {[%emt 0:00:00]} Kxh3 {[%emt 0:00:00]} 59. Be4 {[%emt 0:00:00]} Nc5 {[%emt 0:00:00]} 60. Kxf4 {[%emt 0:00:00]} 1/2-1/2